[Event "Israel National League 2024"]
[Site "Israel"]
[Date "2024.03.08"]
[Round "11.12"]
[White "Postny, Evgeny"]
[Black "Kochavi, Dana"]
[Result "1-0"]
[ECO "D38"]
[WhiteElo "2597"]
[BlackElo "2121"]
[Annotator "TA"]
[PlyCount "59"]
[EventDate "2024.01.07"]
[EventType "team-tourn"]
[EventCountry "ISR"]
[SourceTitle "playchess.com"]
[Source "ChessBase"]
[SourceQuality "1"]
[TimeControl "40/5400+30:1800+30"]

{[%evp 14,59,30,20,35,21,14,24,23,8,5,8,4,9,32,2,8,0,0,3,25,25,13,18,81,99,81,81,87,84,121,77,89,46,314,291,275,293,323,322,614,615,685,678,662,656,656,629]} 1. Nf3 {[%emt 0:00:05]} Nf6 {[%emt 0:00:45]} 2. c4 {[%emt 0:00:11]} e6 {[%emt 0:00:05]} 3. d4 {[%emt 0:00:37]} d5 {[%emt 0:00:04]} 4. Bg5 {[%emt 0:00:44]} Bb4+ {[%emt 0:03:45]} 5. Nc3 {[%emt 0:00:33]} h6 {[%emt 0:00:09]} 6. Bxf6 {[%emt 0:00:35]} Qxf6 {[%emt 0:00:29]} 7. Qa4+ {[%emt 0:01:54]} Nc6 {[%emt 0:00:17]} 8. e3 {[%emt 0:00:17]} Bd7 {[%emt 0:02:14]} 9. Qb3 {[%emt 0:02:10]} a5 {[%emt 0:03:06][%cal Ba7a5,Ba5a4][%mdl 32]} 10. a3 {[%emt 0:07:51]} a4 {[%emt 0:02:09] White has an edge.} 11. Qc2 {[%emt 0:00:47]} Bxc3+ {[%emt 0:01:56]} 12. Qxc3 {[%emt 0:01:21]} O-O {[%emt 0:13:07]} 13. Bd3 {[%emt 0:06:00]} dxc4 {[%emt 0:07:55]} 14. Bxc4 {[%emt 0:03:59]} Rfc8 {[%emt 0:07:32]} 15. O-O {[%emt 0:21:06]} Na5 {[%emt 0:04:00]} 16. Ne5 {[%emt 0:00:38]} Be8 {[%emt 0:03:11]} 17. Ba2 {[%emt 0:01:38]} c5 {[%emt 0:05:47]} 18. d5 {[%emt 0:01:37][%cal Bd4d5,Bd5d6,Bd6d7][%mdl 32]} (18. dxc5 b6 19. f4 Rxc5 $15) 18... Nb3 {[%emt 0:24:44]} 19. Bxb3 $16 {[%emt 0:05:07]} axb3 {[%emt 0:00:27]} 20. d6 {[%emt 0:00:07][%cal Of1d1]} Bc6 {[%emt 0:02:34]} 21. f3 {[%emt 0:07:24][%cal Of1d1]} (21. Qxc5 $2 Bxg2 22. Qd4 Bxf1 23. Rxf1 Rc2 $19) 21... Rd8 {[%emt 0:06:31]} 22. Rfd1 {[%emt 0:05:13][%cal Oa1c1]} (22. Qxc5 $6 Bd5 23. f4 Qf5 $11) 22... Ra6 {[%emt 0:09:04]} 23. e4 {[%emt 0:05:46] White is more active.} (23. Qxc5 $6 Bd5 24. f4 Rdxd6 $11) 23... Bd5 $2 {[%emt 0:01:15][%mdl 8192] [#] Black cannot hold the game after this.} 24. d7 $18 {[%emt 0:04:58]} ({Don't play} 24. exd5 Raxd6 25. f4 Rxd5 26. Rxd5 (26. Qxb3 Qxf4 27. Nf3 Qc7 $18) 26... Rxd5 $18) 24... Bc6 {[%emt 0:00:23]} 25. Qxc5 {[%emt 0:00:34]} Kh7 {[%emt 0:00:50]} 26. Rac1 {[%emt 0:03:51]} Bxd7 $2 {[%emt 0:00:27]} (26... Qg5 27. Nxf7 Qxc5+ 28. Rxc5 Rxd7 29. Rxd7 Bxd7) 27. Nxd7 {[%emt 0:03:51] White is clearly winning.} ({Stronger than} 27. Rxd7 Rxd7 28. Nxd7 Qxb2 29. Nf8+ Kg8 $11) 27... Rxd7 {[%emt 0:00:35]} 28. Rxd7 {[%emt 0:00:11]} Rc6 {[%emt 0:00:04]} 29. Qe3 {[%emt 0:00:12]} Qxb2 {[%emt 0:00:23]} 30. Rdd1 {[%emt 0:01:50] Weighted Error Value: White=0.08 (flawless) /Black=0.48.  Loses game:     	---       	Black=1      Mistake:       	---       	Black=2      Inaccurate:     	White=3     	Black=1      OK:         	White=11    	Black=10     Best:        	White=1     	---} 1-0

[Event "Israel National League 2024"]
[Site "Israel"]
[Date "2024.03.08"]
[Round "11.13"]
[White "Sokolovsky, Yahli"]
[Black "Kochavi, Ori"]
[Result "1-0"]
[ECO "B15"]
[WhiteElo "2436"]
[BlackElo "2428"]
[Annotator "TA"]
[PlyCount "79"]
[EventDate "2024.01.07"]
[EventType "team-tourn"]
[EventCountry "ISR"]
[SourceTitle "playchess.com"]
[Source "ChessBase"]
[SourceQuality "1"]
[TimeControl "40/5400+30:1800+30"]

{[%evp 12,79,33,39,34,33,33,27,29,28,29,30,26,33,31,33,30,31,46,42,43,40,50,35,71,42,39,42,64,70,94,94,85,87,104,79,81,85,82,95,97,100,103,100,105,98,122,113,152,154,148,133,153,147,147,139,195,183,204,192,200,199,200,182,235,241,217,193,208,172]} 1. e4 {[%emt 0:00:03]} c6 {[%emt 0:01:25]} 2. d4 {[%emt 0:00:05]} d5 {[%emt 0:00:17]} 3. Nd2 {[%emt 0:00:05]} dxe4 {[%emt 0:00:10]} 4. Nxe4 {[%emt 0:00:04]} Nf6 {[%emt 0:00:06]} 5. Nxf6+ {[%emt 0:00:05]} exf6 {[%emt 0:00:03]} 6. c3 {[%emt 0:00:09]} Bf5 {[%emt 0:04:54]} 7. Ne2 {[%emt 0:12:45]} Bd6 {[%emt 0:00:18]} 8. Ng3 {[%emt 0:00:06]} Bg6 {[%emt 0:03:38]} 9. Qe2+ {[%emt 0:00:27]} Qe7 {[%emt 0:13:35] White has an edge.} 10. Qxe7+ {[%emt 0:00:05]} Kxe7 {[%emt 0:00:05]} 11. Bd2 {[%emt 0:00:06]} h5 {[%emt 0:07:18][%cal Bh7h5,Bh5h4][%mdl 32]} 12. O-O-O {[%emt 0:02:03]} h4 {[%emt 0:01:55]} 13. Re1+ {[%emt 0:11:07]} Kf8 {[%emt 0:02:52]} 14. Ne4 {[%emt 0:00:23]} Bc7 {[%emt 0:06:44]} 15. Nc5 {[%emt 0:03:02][%cal Be4c5,Bc5d3,Bd3b4,Bb4c2,Bc2e3][%mdl 32]} b6 {[%emt 0:00:29]} 16. Nd3 {[%emt 0:05:33]} Bd6 {[%emt 0:08:59]} 17. Bf4 $36 {[%emt 0:03:26][%mdl 2048] White fights for an advantage.} Be7 {[%emt 0:00:05]} 18. Nb4 {[%emt 0:59:56] White is more active.} a5 $1 {[%emt 0:02:14]} 19. Nc2 {[%emt 0:00:00]} Nd7 {[%emt 0:06:40]} 20. Ne3 {[%emt 0:00:00]} a4 {[%emt 0:05:17]} 21. Be2 {[%emt 0:00:00][%cal Bf1e2,Be2g4,Bg4d7][%mdl 32]} Be4 {[%emt 0:10:59] [#] ...g5 is the strong threat.} 22. Bg4 {[%emt 0:00:00]} g5 {[%emt 0:01:35]} 23. Bc7 {[%emt 0:00:00]} Ra7 {[%emt 0:00:50]} 24. Bxd7 {[%emt 0:00:00][%cal Od7f5]} Rxc7 {[%emt 0:00:09]} 25. Bf5 {[%emt 0:00:00]} Bd5 {[%emt 0:00:26]} 26. Nxd5 {[%emt 0:00:00]} cxd5 {[%emt 0:00:04]} 27. a3 {[%emt 0:00:00]} Kg7 {[%emt 0:01:10]} 28. Re2 {[%emt 0:00:00]} Rb8 {[%emt 0:00:47]} 29. Rhe1 {[%emt 0:00:00]} Kf8 {[%emt 0:00:07]} 30. g3 {[%emt 0:00:00] White is clearly better.} Bd6 {[%emt 0:00:59]} 31. Kd2 {[%emt 0:00:00]} Ra7 {[%emt 0:00:56]} 32. Kd3 {[%emt 0:00:00]} Rd8 {[%emt 0:01:56]} 33. gxh4 {[%emt 0:00:00]} gxh4 {[%emt 0:01:45]} (33... Kg7 $16 34. h3 Raa8) 34. h3 $18 {[%emt 0:02:04]} Bf4 {[%emt 0:08:09]} 35. Rg1 {[%emt 0:00:15] [#] Strongly threatening Bh7.} Re7 {[%emt 0:00:04]} 36. Rxe7 {[%emt 0:00:46]} Kxe7 {[%emt 0:00:03]} 37. Rg4 {[%emt 0:00:16][%csl LRf4,LRh4]} Bc7 {[%emt 0:01:36]} (37... Bc1 $142) 38. Rxh4 {[%emt 0:03:50]} Rg8 {[%emt 0:00:05]} 39. Bg4 {[%emt 0:01:33]} f5 {[%emt 0:00:23]} 40. Bf3 {[%emt 0:00:58] Weighted Error Value: White=0.04 (flawless) /Black=0.12 (very precise) .  Mistake:       	---       	Black=2      Inaccurate:     	White=1     	Black=2      OK:         	White=22    	Black=10     Best:        	White=1     	Black=3      Strong:       	---       	Black=1} 1-0

[Event "Israel National League 2024"]
[Site "Israel"]
[Date "2024.03.08"]
[Round "11.14"]
[White "Ben Ari, Yannay"]
[Black "Yaniv, Yuval"]
[Result "1/2-1/2"]
[ECO "A49"]
[WhiteElo "2417"]
[BlackElo "2383"]
[Annotator "RC"]
[PlyCount "132"]
[EventDate "2024.01.07"]
[EventType "team-tourn"]
[EventCountry "ISR"]
[SourceTitle "playchess.com"]
[Source "ChessBase"]
[SourceQuality "1"]
[TimeControl "40/5400+30:1800+30"]

1. Nf3 {[%emt 0:02:17]} Nf6 {[%emt 0:00:30]} 2. g3 {[%emt 0:00:14]} g6 {[%emt 0:00:56]} 3. b3 {[%emt 0:00:12]} Bg7 {[%emt 0:00:49]} 4. Bb2 {[%emt 0:00:08]} O-O {[%emt 0:01:51]} 5. Bg2 {[%emt 0:00:08]} d6 {[%emt 0:01:19]} 6. d4 {[%emt 0:00:48]} b5 {[%emt 0:01:15]} 7. O-O {[%emt 0:03:26]} Bb7 {[%emt 0:00:22]} 8. Nbd2 {[%emt 0:00:09]} Nbd7 {[%emt 0:02:09]} 9. c4 {[%emt 0:00:14]} bxc4 {[%emt 0:00:13]} 10. bxc4 {[%emt 0:00:05]} Rb8 {[%emt 0:02:14]} 11. Qc2 {[%emt 0:10:30]} Ne4 {[%emt 0:21:18]} 12. Nxe4 {[%emt 0:16:11]} Bxe4 {[%emt 0:00:13]} 13. Qxe4 {[%emt 0:00:04]} Rxb2 {[%emt 0:00:09]} 14. a4 {[%emt 0:06:40]} Nb6 {[%emt 0:04:21]} 15. c5 {[%emt 0:04:13]} dxc5 {[%emt 0:03:18]} 16. dxc5 {[%emt 0:02:50]} Nd5 {[%emt 0:00:27]} 17. Rad1 {[%emt 0:17:21]} e6 {[%emt 0:07:02]} 18. Qc4 {[%emt 0:03:01]} Qe7 {[%emt 0:19:10]} 19. Rc1 {[%emt 0:10:52]} Rb4 {[%emt 0:07:23]} 20. Qc2 {[%emt 0:04:25]} Nc3 {[%emt 0:01:53]} 21. e3 {[%emt 0:01:00]} Qxc5 {[%emt 0:06:29]} 22. Kh1 {[%emt 0:13:03]} Qb6 {[%emt 0:11:08]} 23. Nd4 {[%emt 0:01:16]} c5 {[%emt 0:01:05]} 24. Nc6 {[%emt 0:02:51]} Rxa4 {[%emt 0:02:44]} 25. Qd3 {[%emt 0:00:10]} Ra3 {[%emt 0:03:19]} 26. Qd6 {[%emt 0:00:18]} h5 {[%emt 0:01:20]} 27. Bf3 {[%emt 0:00:44]} Bf6 {[%emt 0:00:22]} 28. e4 {[%emt 0:00:48]} Na2 {[%emt 0:00:39]} 29. Rb1 {[%emt 0:00:24]} Nb4 {[%emt 0:00:12]} 30. Qf4 {[%emt 0:00:34]} Qxc6 {[%emt 0:00:48]} 31. Qxf6 {[%emt 0:00:17]} e5 {[%emt 0:00:29]} 32. Qxc6 {[%emt 0:00:19]} Nxc6 {[%emt 0:00:00]} 33. Be2 {[%emt 0:00:00]} Nd4 {[%emt 0:00:59]} 34. Bc4 {[%emt 0:00:02]} Ra4 {[%emt 0:00:19]} 35. Bd5 {[%emt 0:00:01]} Rb4 {[%emt 0:00:42]} 36. Ra1 {[%emt 0:00:01]} c4 {[%emt 0:00:27]} 37. Rfc1 {[%emt 0:01:42]} Nb3 {[%emt 0:00:32]} 38. Rab1 {[%emt 0:01:37]} Rc8 {[%emt 0:00:25]} 39. Bxc4 {[%emt 0:00:03]} Rcxc4 {[%emt 0:00:35]} 40. Rxc4 {[%emt 0:00:02]} Rxc4 {[%emt 0:00:06]} 41. Rxb3 {[%emt 0:30:05]} Rc7 {[%emt 0:20:13]} 42. Rb5 {[%emt 0:00:00]} Re7 {[%emt 0:00:38]} 43. Kg2 {[%emt 0:00:00]} Kf8 {[%emt 0:04:54]} 44. h4 {[%emt 0:00:00]} a6 {[%emt 0:02:06]} 45. Ra5 {[%emt 0:00:00]} Re6 {[%emt 0:00:07]} 46. Kf3 {[%emt 0:00:00]} Ke7 {[%emt 0:00:10]} 47. Rd5 {[%emt 0:00:00]} f6 {[%emt 0:01:15]} 48. Ke3 {[%emt 0:02:22]} Rb6 {[%emt 0:01:47]} 49. Ra5 {[%emt 0:00:01]} Kd7 {[%emt 0:00:17]} 50. f4 {[%emt 0:01:54]} exf4+ {[%emt 0:00:24]} 51. gxf4 {[%emt 0:00:06]} Kc7 {[%emt 0:00:11]} 52. f5 {[%emt 0:01:08]} gxf5 {[%emt 0:04:01]} 53. Rxf5 {[%emt 0:00:02]} Rb5 {[%emt 0:00:46]} 54. Rxf6 {[%emt 0:00:04]} a5 {[%emt 0:00:05]} 55. Kf4 {[%emt 0:00:32]} Kb7 {[%emt 0:01:01]} 56. e5 {[%emt 0:02:44]} a4 {[%emt 0:00:28]} 57. Rf7+ {[%emt 0:00:14]} Kc6 {[%emt 0:00:29]} 58. Ra7 {[%emt 0:00:13]} Rb4+ {[%emt 0:00:13]} 59. Kg5 {[%emt 0:00:33]} Kd5 {[%emt 0:00:27]} 60. Kf5 {[%emt 0:00:57]} Rxh4 {[%emt 0:00:49]} 61. e6 {[%emt 0:00:15]} Rh1 {[%emt 0:00:15]} 62. Ra5+ {[%emt 0:00:47]} Kd6 {[%emt 0:00:16]} 63. Ra6+ {[%emt 0:00:00]} Ke7 {[%emt 0:00:25]} 64. Ra7+ {[%emt 0:00:03]} Ke8 {[%emt 0:00:08]} 65. Ra8+ {[%emt 0:01:01]} Ke7 {[%emt 0:00:05]} 66. Ra7+ {[%emt 0:00:05]} Ke8 {[%emt 0:00:03]} 1/2-1/2

[Event "Israel National League 2024"]
[Site "Israel"]
[Date "2024.03.08"]
[Round "11.15"]
[White "Efroimski, Marsel"]
[Black "Iliaguev, Nisim"]
[Result "0-1"]
[ECO "C48"]
[WhiteElo "2434"]
[BlackElo "2399"]
[Annotator "RC"]
[PlyCount "132"]
[EventDate "2024.01.07"]
[EventType "team-tourn"]
[EventCountry "ISR"]
[SourceTitle "playchess.com"]
[Source "ChessBase"]
[SourceQuality "1"]
[TimeControl "40/5400+30:1800+30"]

1. e4 {[%emt 0:00:02]} e5 {[%emt 0:22:59]} 2. Nf3 {[%emt 0:00:05]} Nf6 {[%emt 0:01:12]} 3. Nc3 {[%emt 0:03:55]} Nc6 {[%emt 0:00:17]} 4. Bb5 {[%emt 0:00:05]} Nd4 {[%emt 0:00:13]} 5. Bc4 {[%emt 0:00:05]} Bc5 {[%emt 0:00:15]} 6. Nxe5 {[%emt 0:02:24]} Qe7 {[%emt 0:00:51]} 7. Nf3 {[%emt 0:09:31]} d5 {[%emt 0:00:25]} 8. Nxd5 {[%emt 0:01:42]} Qxe4+ {[%emt 0:11:54]} 9. Ne3 {[%emt 0:00:06]} Bg4 {[%emt 0:09:30]} 10. Be2 {[%emt 0:00:12]} Nxe2 {[%emt 0:00:50]} 11. Qxe2 {[%emt 0:00:06]} O-O-O {[%emt 0:00:51]} 12. d3 {[%emt 0:14:04]} Bxf3 {[%emt 0:14:20]} 13. Qxf3 {[%emt 0:03:31]} Qxf3 {[%emt 0:00:07]} 14. gxf3 {[%emt 0:00:02]} Rhe8 {[%emt 0:00:07]} 15. O-O {[%emt 0:05:06]} Nd5 {[%emt 0:04:26]} 16. Re1 {[%emt 0:04:01]} Re6 {[%emt 0:03:40]} 17. Bd2 {[%emt 0:00:42]} Rf6 {[%emt 0:03:04]} 18. Kg2 {[%emt 0:12:23]} Nf4+ {[%emt 0:01:24]} 19. Kf1 {[%emt 0:03:06]} Ne6 {[%emt 0:01:53]} 20. b4 {[%emt 0:07:41]} Bb6 {[%emt 0:04:45]} 21. Nc4 {[%emt 0:02:39]} Rxf3 {[%emt 0:01:28]} 22. Nxb6+ {[%emt 0:00:05]} axb6 {[%emt 0:00:32]} 23. Re5 {[%emt 0:12:17]} Rd4 {[%emt 0:01:00]} 24. a3 {[%emt 0:04:35]} Kd7 {[%emt 0:04:30]} 25. Kg2 {[%emt 0:06:13]} Rf6 {[%emt 0:00:12]} 26. Be3 {[%emt 0:02:06]} Rg4+ {[%emt 0:01:15]} 27. Kh1 {[%emt 0:00:04]} Kd6 {[%emt 0:04:11]} 28. Rh5 {[%emt 0:00:43]} h6 {[%emt 0:01:11]} 29. c4 {[%emt 0:03:15]} g5 {[%emt 0:01:17]} 30. h3 {[%emt 0:01:14]} Rgf4 {[%emt 0:00:07]} 31. Rg1 {[%emt 0:03:27]} Rf3 {[%emt 0:03:17]} 32. h4 {[%emt 0:00:09]} Rh3+ {[%emt 0:02:04]} 33. Kg2 {[%emt 0:00:04]} Rxh4 {[%emt 0:00:17]} 34. Rxh4 {[%emt 0:00:04]} gxh4 {[%emt 0:00:02]} 35. Rh1 {[%emt 0:01:40]} Nf4+ {[%emt 0:00:13]} 36. Kf1 {[%emt 0:00:33]} Nxd3 {[%emt 0:02:37]} 37. Rxh4 {[%emt 0:00:06]} Ne5 {[%emt 0:00:41]} 38. Bxh6 {[%emt 0:00:16]} c5 {[%emt 0:00:58]} 39. Bf8+ {[%emt 0:00:37]} Kc6 {[%emt 0:00:29]} 40. b5+ {[%emt 0:00:24]} Kd7 {[%emt 0:00:31]} 41. Bg7 {[%emt 0:30:23]} Rf5 {[%emt 0:30:29]} 42. Bxe5 {[%emt 0:00:00]} Rxe5 {[%emt 0:00:00]} 43. Kg2 {[%emt 0:00:00]} Re6 {[%emt 0:00:00]} 44. Kf3 {[%emt 0:00:00]} Kd6 {[%emt 0:00:00]} 45. Rf4 {[%emt 0:00:00]} Re7 {[%emt 0:00:00]} 46. Rf6+ {[%emt 0:00:00]} Ke5 {[%emt 0:00:00]} 47. Rxb6 {[%emt 0:00:00]} Kd4 {[%emt 0:00:00]} 48. a4 {[%emt 0:00:00]} Kxc4 {[%emt 0:00:00]} 49. a5 {[%emt 0:00:00]} Kd3 {[%emt 0:00:00]} 50. a6 {[%emt 0:00:00]} bxa6 {[%emt 0:00:00]} 51. bxa6 {[%emt 0:00:00]} Ra7 {[%emt 0:00:00]} 52. Rd6+ {[%emt 0:00:00]} Kc4 {[%emt 0:00:00]} 53. Ke4 {[%emt 0:00:00]} Re7+ {[%emt 0:00:00]} 54. Kf5 {[%emt 0:00:00]} Kb5 {[%emt 0:00:00]} 55. Kf6 {[%emt 0:00:00]} Ra7 {[%emt 0:00:00]} 56. f4 {[%emt 0:00:00]} c4 {[%emt 0:00:00]} 57. Rd8 {[%emt 0:01:25]} Rc7 {[%emt 0:00:00]} 58. Rb8+ {[%emt 0:04:46]} Kxa6 {[%emt 0:00:00]} 59. f5 {[%emt 0:00:06]} Ka5 {[%emt 0:00:00]} 60. Rf8 {[%emt 0:03:57]} c3 {[%emt 0:00:00]} 61. Rxf7 {[%emt 0:00:04]} Rxf7+ {[%emt 0:00:00]} 62. Kxf7 {[%emt 0:00:03]} c2 {[%emt 0:00:00]} 63. f6 {[%emt 0:00:04]} c1=Q {[%emt 0:00:00]} 64. Kf8 {[%emt 0:00:37]} Qh6+ {[%emt 0:00:00]} 65. Ke7 {[%emt 0:00:13]} Qg5 {[%emt 0:00:00]} 66. Ke6 {[%emt 0:00:08]} Kb6 {[%emt 0:00:00]} 0-1

[Event "Israel National League 2024"]
[Site "Israel"]
[Date "2024.03.08"]
[Round "11.16"]
[White "Karp, Ilya"]
[Black "Zemach, Nadav"]
[Result "0-1"]
[ECO "C78"]
[WhiteElo "2382"]
[BlackElo "2384"]
[Annotator "RC"]
[PlyCount "60"]
[EventDate "2024.01.07"]
[EventType "team-tourn"]
[EventCountry "ISR"]
[SourceTitle "playchess.com"]
[Source "ChessBase"]
[SourceQuality "1"]
[TimeControl "40/5400+30:1800+30"]

1. e4 {[%emt 0:01:10]} e5 {[%emt 0:00:11]} 2. Nf3 {[%emt 0:00:31]} Nc6 {[%emt 0:00:09]} 3. Bb5 {[%emt 0:00:05]} a6 {[%emt 0:00:23]} 4. Ba4 {[%emt 0:00:03]} Nf6 {[%emt 0:00:06]} 5. O-O {[%emt 0:00:06]} b5 {[%emt 0:00:53]} 6. Bb3 {[%emt 0:00:08]} Bc5 {[%emt 0:00:29]} 7. c3 {[%emt 0:01:43]} d6 {[%emt 0:00:12]} 8. d4 {[%emt 0:01:04]} Bb6 {[%emt 0:00:19]} 9. a4 {[%emt 0:00:13]} Rb8 {[%emt 0:00:20]} 10. a5 {[%emt 0:02:11]} Ba7 {[%emt 0:00:17]} 11. h3 {[%emt 0:02:21]} Bb7 {[%emt 0:00:38]} 12. Re1 {[%emt 0:04:20]} O-O {[%emt 0:07:37]} 13. Be3 {[%emt 0:01:54]} Ra8 {[%emt 0:01:27]} 14. Nbd2 {[%emt 0:12:01]} h6 {[%emt 0:01:40]} 15. Qb1 {[%emt 0:15:30]} Re8 {[%emt 0:10:54]} 16. Qa2 {[%emt 0:05:24]} Qd7 {[%emt 0:05:51]} 17. dxe5 {[%emt 0:03:18]} Nxe5 {[%emt 0:03:38]} 18. Bxa7 {[%emt 0:00:41]} Rxa7 {[%emt 0:01:01]} 19. Nxe5 {[%emt 0:09:26]} Rxe5 {[%emt 0:01:24]} 20. Bc2 {[%emt 0:03:38]} Ra8 {[%emt 0:05:42]} 21. Nf3 {[%emt 0:09:04]} Re7 {[%emt 0:02:07]} 22. e5 {[%emt 0:00:31]} dxe5 {[%emt 0:05:02]} 23. Nxe5 {[%emt 0:00:08]} Qe8 {[%emt 0:01:21]} 24. f4 {[%emt 0:03:24]} Nd7 {[%emt 0:15:20]} 25. Bg6 {[%emt 0:08:47]} Nxe5 {[%emt 0:01:58]} 26. Rxe5 {[%emt 0:00:32]} Rxe5 {[%emt 0:01:25]} 27. fxe5 {[%emt 0:00:01]} Rd8 {[%emt 0:01:32]} 28. Bh5 {[%emt 0:06:03]} Rd2 {[%emt 0:01:30]} 29. Re1 {[%emt 0:00:38]} Rxg2+ {[%emt 0:02:16]} 30. Kf1 {[%emt 0:00:03]} Qd7 {[%emt 0:00:42]} 0-1

[Event "Israel National League 2024"]
[Site "Israel"]
[Date "2024.03.08"]
[Round "11.17"]
[White "Vagman, Roy"]
[Black "Mordechai, Hanan"]
[Result "1-0"]
[ECO "B27"]
[WhiteElo "2302"]
[BlackElo "2347"]
[Annotator "TA"]
[PlyCount "101"]
[EventDate "2024.01.07"]
[EventType "team-tourn"]
[EventCountry "ISR"]
[SourceTitle "playchess.com"]
[Source "ChessBase"]
[SourceQuality "1"]
[TimeControl "40/5400+30:1800+30"]

{[%evp 10,101,21,9,16,10,51,55,135,123,140,145,177,166,169,143,160,159,144,148,139,101,178,170,184,156,155,161,174,153,175,156,185,137,201,137,166,151,140,139,183,118,195,121,119,124,122,0,204,191,207,62,50,41,12,29,114,72,112,71,71,47,95,99,314,296,302,314,294,274,434,431,470,457,454,427,484,470,643,637,627,633,717,667,654,645,1321,1329,1229,1256,1103,1045,993,909]} 1. e4 {[%emt 0:00:03]} c5 {[%emt 0:01:00]} 2. Nf3 {[%emt 0:00:09]} g6 {[%emt 0:00:07]} 3. c3 {[%emt 0:04:38]} d5 {[%emt 0:00:13]} 4. e5 {[%emt 0:00:13]} Nc6 {[%emt 0:00:49]} 5. Bb5 {[%emt 0:00:34]} Qb6 {[%emt 0:04:57]} 6. Bxc6+ {[%emt 0:01:32] B27: Sicilian: 2 Nf3, unusual Black 2nd moves.} bxc6 {[%emt 0:01:29]} 7. d3 {[%emt 0:02:46]} Ba6 $146 {[%emt 0:10:38]} ({Predecessor:} 7... Bg7 8. O-O Nh6 9. h3 O-O 10. Re1 f6 11. e6 Nf5 12. b3 Rd8 13. Bf4 c4 14. dxc4 dxc4 {1-0 Yu,Y (2743)-Gundavaa,B (2485) Asian Continental op 16th 2017 (5)}) 8. b3 {[%emt 0:05:03]} c4 {[%emt 0:11:41]} (8... Nh6 $14) 9. bxc4 $16 {[%emt 0:02:39]} dxc4 {[%emt 0:00:11]} 10. d4 {[%emt 0:00:12]} e6 {[%emt 0:19:59]} 11. O-O {[%emt 0:13:40]} Ne7 {[%emt 0:08:55]} 12. Nbd2 {[%emt 0:01:41]} Nd5 {[%emt 0:08:20]} 13. Ne4 {[%emt 0:01:20]} h6 {[%emt 0:05:45]} 14. Bd2 {[%emt 0:04:47]} Be7 {[%emt 0:01:14]} 15. h4 {[%emt 0:01:17]} O-O-O {[%emt 0:04:47]} (15... Kf8 $16) 16. Qc1 {[%emt 0:01:58]} c5 {[%emt 0:02:54]} 17. dxc5 {[%emt 0:05:37]} Bxc5 {[%emt 0:00:12]} 18. Bxh6 {[%emt 0:00:19]} Bb7 {[%emt 0:01:14]} 19. Bg5 {[%emt 0:01:11]} Rd7 {[%emt 0:00:23]} 20. Rb1 {[%emt 0:01:12]} Qc6 {[%emt 0:00:39]} 21. Re1 {[%emt 0:01:59]} (21. Rd1 $18) 21... Bb6 {[%emt 0:04:45]} (21... Kb8 $16 22. a4 Ka8) 22. Qc2 {[%emt 0:05:41]} Kb8 {[%emt 0:11:18]} 23. a4 {[%emt 0:00:19]} Ka8 {[%emt 0:00:00]} 24. Qa2 {[%emt 0:01:06]} Qc7 {[%emt 0:00:00]} 25. Qa3 {[%emt 0:01:16]} (25. Nfd2 $18 {And now a5 would win.} Qc6 26. Qxc4 (26. Nxc4 Nxc3 27. Nxb6+ axb6 $19)) 25... Rb8 {[%emt 0:00:00]} (25... a5 $16 26. Re2 Ba7) 26. Re2 {[%emt 0:07:49]} (26. a5 $18 Bxa5 27. Nc5) 26... a6 $16 {[%emt 0:00:00]} 27. Qa2 {[%emt 0:02:27]} Ba5 {[%emt 0:00:00]} 28. Qa3 {[%emt 0:01:01]} (28. Qc2 $16) 28... Bc8 $2 {[%emt 0:00:51]} (28... Bb6 $1 $11 {and Black has nothing to worry.}) 29. Rxb8+ $18 {[%emt 0:01:15]} Qxb8 {[%emt 0:00:01]} 30. Kh2 {[%emt 0:02:40]} ({Better is} 30. Nfd2 $18) 30... f5 $1 $14 {[%emt 0:02:29]} 31. Nd6 {[%emt 0:04:42]} Bxc3 {[%emt 0:00:24]} 32. Nxc4 {[%emt 0:00:48]} Qc7 {[%emt 0:00:33]} (32... Rc7 $1 $11 33. Ne3 Bb7) 33. Qb3 {[%emt 0:00:45]} Qc6 {[%emt 0:00:17]} 34. Ne3 {[%emt 0:04:24]} Rb7 {[%emt 0:00:01]} 35. Qd1 {[%emt 0:00:13]} Nb4 {[%emt 0:01:54]} (35... Rd7 $1 $14 36. Qb3 Rb7) 36. Qd6 $16 {[%emt 0:04:49]} Qxa4 $2 {[%emt 0:00:00] [#]} (36... Rd7 $16 37. Qxc6+ Nxc6) 37. Qc5 $1 $18 {[%emt 0:00:22]} Qc6 {[%emt 0:00:00] [#]} 38. Qxc6 $1 {[%emt 0:00:04]} Nxc6 {[%emt 0:00:00]} 39. Rc2 {[%emt 0:00:07]} Nxe5 {[%emt 0:01:28]} (39... Rb3 {was called for.} 40. Nd1 Bxe5+ 41. Nxe5 Nxe5 42. Rxc8+ Kb7) 40. Rxc3 $18 {[%emt 0:00:07]} Nxf3+ {[%emt 0:00:05]} 41. gxf3 {[%emt 0:30:04]} Bd7 {[%emt 0:10:11]} 42. Bf4 {[%emt 0:00:00]} Rb4 {[%emt 0:02:47]} 43. Kg3 {[%emt 0:00:00]} Bb5 {[%emt 0:00:08]} 44. Rc8+ {[%emt 0:00:00]} Ka7 {[%emt 0:00:28]} 45. Rc7+ {[%emt 0:00:00]} Ka8 {[%emt 0:00:37]} 46. Re7 {[%emt 0:00:00]} a5 {[%emt 0:00:20]} 47. Rxe6 {[%emt 0:00:00]} a4 {[%emt 0:00:20]} 48. Nd5 {[%emt 0:00:00]} Rb3 {[%emt 0:00:29]} 49. Nc7+ {[%emt 0:00:00]} Kb7 {[%emt 0:00:13]} 50. Nxb5 {[%emt 0:00:00]} Rxb5 {[%emt 0:00:04]} 51. Bd6 {[%emt 0:00:00]} 1-0